fUSD/lending_fUSD_20241112
["ID","MTS","AMOUNT","RATE_DAILY","PERIOD"]
[342027001,1731369691262,150.0,0.0002499,120]
[342027002,1731369751304,150.0,0.00024474,120]
[342027004,1731369828525,1490.49,0.00011475,2]
[342027007,1731369864367,194.33,8.219e-05,2]
[342027008,1731369870745,150.0,0.00021782,120]
[342027009,1731369990736,150.0,0.00023546,120]
[342027011,1731370030152,-250.0,0.00013068,2]
[342027012,1731370030174,-23.7207452,0.00013094,2]
[342027017,1731370110702,150.0,0.00023236,120]
[342027037,1731370232145,-210.5792548,0.00013094,2]
[342027038,1731370232154,-164.23,0.00013094,2]
[342027040,1731370232163,-1000.0,0.00013128,2]
[342027041,1731370232172,-214.5,0.00013214,2]
[342027042,1731370232181,-250.0,0.00013272,2]
[342027043,1731370232192,-150.0,0.00013284,2]
[342027044,1731370232201,-389.45,0.00013417,2]
[342027045,1731370232210,-150.0,0.00013597,2]
[342027046,1731370232219,-38.99365449,0.00013597,2]
[342027047,1731370232230,-261.00634551,0.00013597,2]
[342027048,1731370232239,-2602.18714898,0.00013598,2]
[342027049,1731370232248,-2767.79366242,0.00013598,2]
[342027050,1731370232267,-618.47822934,0.00013598,2]
[342027051,1731370232278,-1100.0,0.00013598,2]
[342027052,1731370232289,-23787.46390824,0.00013598,2]
[342027053,1731370232297,-83919.9639,0.00013598,2]
[342027054,1731370232306,-500.0,0.00013611,2]
[342027055,1731370232315,-23900.0,0.00013696,2]
[342027056,1731370232324,-500.0,0.00013698,2]
[342027057,1731370232333,-500.0,0.00013698,2]
[342027058,1731370232341,-500.0,0.00013698,2]
[342027059,1731370232351,-500.0,0.00013698,2]
[342027060,1731370232360,-500.0,0.00013698,2]
[342027061,1731370232369,-1030.88,0.00013698,2]
[342027062,1731370232378,-500.0,0.00013698,2]
[342027063,1731370232387,-325.51968254,0.00013698,2]
[342027064,1731370232396,-664.86,0.00013698,2]
[342027065,1731370232405,-809.4,0.00013698,2]
[342027066,1731370232415,-1088.11,0.00013698,2]
[342027067,1731370232424,-1753.15,0.00013698,2]
[342027068,1731370232436,-940.83,0.00013698,2]
[342027069,1731370232445,-500.0,0.00013698,2]
[342027070,1731370232454,-500.0,0.00013698,2]
[342027071,1731370232464,-500.0,0.00013698,2]
[342027072,1731370232473,-500.0,0.00013698,2]
[342027073,1731370232482,-500.0,0.00013698,2]
[342027074,1731370232491,-501.23,0.00013698,2]
[342027075,1731370232501,-500.0,0.00013698,2]
[342027076,1731370232510,-500.0,0.00013698,2]
[342027077,1731370232519,-500.0,0.00013698,2]
[342027078,1731370232528,-500.0,0.00013698,2]
[342027079,1731370232538,-500.0,0.00013698,2]
[342027080,1731370232547,-500.0,0.00013698,2]
[342027081,1731370232556,-500.0,0.00013698,2]
[342027082,1731370232564,-500.0,0.00013698,2]
[342027083,1731370232573,-500.0,0.00013698,2]
[342027084,1731370232582,-500.0,0.00013698,2]
[342027085,1731370232591,-595.93165897,0.00013698,2]
[342027086,1731370232600,-500.0,0.00013698,2]
[342027087,1731370232608,-250.0,0.00013699,2]
[342027088,1731370232618,-200.0,0.00013699,2]
[342027089,1731370232627,-300.0,0.00013699,2]
[342027090,1731370232636,-150.0,0.00013699,2]
[342027091,1731370232644,-470.92170664,0.000137,2]
[342027092,1731370232653,-200.0,0.000137,2]
[342027093,1731370232662,-199.01916,0.000137,2]
[342027094,1731370232671,-500.0,0.000137,2]
[342027095,1731370232680,-1490.49,0.00013739,2]
[342027096,1731370232692,-2602.18714891,0.00013743,2]
[342027097,1731370232701,-200.0,0.0001383,2]
[342027098,1731370232710,-2602.18714891,0.00013887,2]
[342027099,1731370232719,-958.888,0.0001389,2]
[342027100,1731370232728,-966.54,0.0001389,2]
[342027101,1731370232737,-2602.18714891,0.00014032,2]
[342027102,1731370232746,-684.28,0.00014152,2]
[342027103,1731370232755,-2602.18714891,0.00014177,2]
[342027104,1731370232764,-500.0,0.0001429,2]
[342027105,1731370232773,-500.0,0.0001429,2]
[342027106,1731370232782,-500.0,0.0001429,2]
[342027107,1731370232791,-500.0,0.0001429,2]
[342027108,1731370232800,-2602.18714891,0.00014321,2]
[342027109,1731370232809,-150.0,0.00014391,2]
[342027110,1731370232818,-1254.0,0.00014395,2]
[342027111,1731370232826,-453.0,0.00014395,2]
[342027112,1731370232835,-438.76805633,0.00014395,2]
[342027113,1731370232851,-124.23194367,0.00014395,2]
[342027114,1731370232863,-628.0,0.00014395,2]
[342027115,1731370232872,-1592.43082613,0.00014395,2]
[342027116,1731370232883,-329.56917387,0.00014395,2]
[342027117,1731370232892,-2910.0,0.00014395,2]
[342027118,1731370232902,-814.0,0.00014395,2]
[342027119,1731370232911,-1259.0,0.00014395,2]
[342027120,1731370232920,-159.62032101,0.00014404,2]
[342027121,1731370232929,-859.0,0.00014405,2]
[342027122,1731370232940,-5431.38178677,0.00014405,2]
[342027123,1731370232952,-497.61821323,0.00014405,2]
[342027124,1731370232963,-150.0,0.00014405,2]
[342027125,1731370232974,-1260.294,0.00014405,2]
[342027126,1731370232983,-1652.35931611,0.00014466,2]
[342027127,1731370232995,-949.8278328,0.00014466,2]
[342027128,1731370233004,-489.90063786,0.00014499,2]
[342027129,1731370233016,-10.09936214,0.00014499,2]
[342027130,1731370233025,-500.0,0.00014499,2]
[342027131,1731370233036,-500.0,0.00014499,2]
[342027132,1731370233045,-379.37281688,0.00014499,2]
[342027133,1731370233055,-323.94521048,0.00014499,2]
[342027134,1731370233067,-176.05478952,0.00014499,2]
[342027135,1731370233077,-500.0,0.00014499,2]
[342027136,1731370233086,-571.20886755,0.00014499,2]
[342027137,1731370233095,-22.67468863,0.00014499,2]
[342027138,1731370233116,-477.32531137,0.00014499,2]
[342027139,1731370233126,-500.0,0.00014499,2]
[342027140,1731370233135,-500.0,0.00014499,2]
[342027141,1731370233145,-500.0,0.00014499,2]
[342027142,1731370233154,-500.0,0.00014499,2]
[342027143,1731370233164,-500.0,0.00014499,2]
[342027144,1731370233173,-500.0,0.00014499,2]
[342027145,1731370233183,-500.0,0.00014499,2]
[342027146,1731370233198,-500.0,0.00014499,2]
[342027147,1731370233207,-500.0,0.00014499,2]
[342027148,1731370233216,-530.81069255,0.00014499,2]
[342027149,1731370233226,-500.0,0.00014499,2]
[342027150,1731370233235,-500.0,0.00014499,2]
[342027151,1731370233244,-219.56399608,0.00014499,2]
[342027152,1731370233257,-280.43600392,0.00014499,2]
[342027153,1731370233267,-500.0,0.00014499,2]
[342027154,1731370233277,-500.0,0.00014499,2]
[342027155,1731370233286,-500.0,0.00014499,2]
[342027156,1731370233296,-189.31386931,0.00014499,2]
[342027157,1731370233307,-310.68613069,0.00014499,2]
[342027158,1731370233317,-188.66261274,0.00014499,2]
[342027159,1731370233329,-311.33738726,0.00014499,2]
[342027160,1731370233338,-209.0825519,0.00014499,2]
[342027161,1731370233349,-290.9174481,0.00014499,2]
[342027162,1731370233359,-112.81650307,0.00014499,2]
[342027163,1731370233371,-99.96576216,0.00014499,2]
[342027164,1731370233380,-342.21773477,0.00014499,2]
[342027165,1731370233390,-1707.81650307,0.000145,2]
[342027166,1731370233455,-84953.09376683,0.000145,2]
[342027167,1731370233467,-23820.79996637,0.000145,2]
[342027172,1731370238188,-3060.71262694,0.000145,2]
[342027173,1731370238202,-122881.38396826,0.000145,2]
[342027174,1731370238405,-5116.76039902,0.000145,2]
[342027175,1731370238422,-66205.91701279,0.000145,2]
[342027176,1731370238435,-7881.0006746,0.000145,2]
[342027177,1731370238450,-12675.28731017,0.000145,2]
[342027178,1731370238462,-1999.89797505,0.000145,2]
[342027189,1731370238712,-3631.13134079,0.000145,2]
[342027192,1731370238724,-350.88754026,0.000145,2]
[342027209,1731370240265,-7119.603906,0.000145,2]
[342027210,1731370240278,-390.9192,0.000145,2]
[342027211,1731370240354,-0.02713697,0.000145,2]
[342027212,1731370240376,-445.05999992,0.000145,2]
[342027213,1731370240433,-661.77,0.000145,2]
[342027214,1731370240489,-13282.12305406,0.000145,2]
[342027219,1731370243249,-509.56652796,0.00014497,2]
[342027220,1731370243259,-7382.09,0.000145,2]
[342027221,1731370243269,-3984.18945214,0.000145,2]
[342027222,1731370243281,-414.04318027,0.000145,2]
[342027223,1731370243304,-3571.59648223,0.000145,2]
[342027224,1731370243317,-442.70249532,0.000145,2]
[342027225,1731370243360,-685.399625,0.000145,2]
[342027226,1731370243468,-8016.51280984,0.000145,2]
[342027227,1731370243524,-2147.1522937,0.000145,2]
[342027228,1731370243536,-1087.65275147,0.000145,2]
[342027298,1731370246171,-525.6,0.00014498,2]
[342027299,1731370246180,-2988.73299655,0.000145,2]
[342027300,1731370246194,-2605.29659565,0.000145,2]
[342027301,1731370246210,-887.7,0.000145,2]
[342027302,1731370246438,-4007.793096,0.000145,2]
[342027303,1731370246667,-30.41399402,0.000145,2]
[342027304,1731370246681,-751.74812556,0.000145,2]
[342027305,1731370246695,-48507.94289575,0.000145,2]
[342027306,1731370246708,-34121.44915,0.000145,2]
[342027307,1731370246736,-5260.34576726,0.000145,2]
[342027308,1731370246749,-810.17145343,0.000145,2]
[342027309,1731370246763,-4409.0000004,0.000145,2]
[342027310,1731370246777,-500.0,0.000145,2]
[342027311,1731370246790,-4123.75938485,0.000145,2]
[342027312,1731370255697,156.298,0.00011,2]
[342027317,1731370387360,4222.23465548,0.00012981,7]
[342027319,1731370530767,150.0,0.00021336,120]
[342027320,1731370554365,194.33,8.219e-05,2]
[342027322,1731370650703,150.0,0.00020421,120]
[342027324,1731370695134,1540.36,0.00010839,2]
[342027329,1731370890704,150.0,0.0002063,120]
[342027331,1731371010788,150.0,0.0002104,120]
[342027335,1731371116391,250.0,0.0001233,2]
[342027336,1731371120337,4628.55515789,9e-05,2]
[342027337,1731371138127,7397.90240329,9e-05,2]
[342027338,1731371195588,23900.0,0.00012273,2]
[342027340,1731371199319,283.3,0.00012244,2]
[342027341,1731371234248,1074.85,0.00012136,2]
[342027342,1731371250760,150.0,0.00022002,120]
[342027343,1731371257749,200.0,0.00012136,2]
[342027344,1731371273270,500.0,0.00012164,2]
[342027345,1731371307086,292.51567581,0.000125,2]
[342027353,1731371323987,3929.05,0.00012114,2]
[342027355,1731371333173,194.33,8.219e-05,2]
[342027360,1731371350169,250.0,0.00012136,2]
[342027361,1731371357258,377.6,0.00012329,2]
[342027362,1731371370121,-377.6,0.00012637,2]
[342027363,1731371370142,-1029.97075435,0.00012649,2]
[342027364,1731371383192,1686.16,0.00012138,2]
[342027373,1731371432331,-1686.88229046,0.00012649,2]
[342027374,1731371432340,-181.57,0.00012658,2]
[342027375,1731371432349,-231.06,0.00012743,2]
[342027376,1731371432359,-373.85,0.00012749,2]
[342027377,1731371432370,-542.18747717,0.00012755,2]
[342027378,1731371432382,-457.81252283,0.00012755,2]
[342027379,1731371432392,-150.0,0.00012757,2]
[342027380,1731371432401,-335.18,0.00012763,2]
[342027381,1731371432411,-612.56,0.00012766,2]
[342027382,1731371432420,-164.77,0.00012768,2]
[342027383,1731371432429,-519.59,0.00012768,2]
[342027384,1731371432439,-159.56,0.00012775,2]
[342027385,1731371432449,-150.99,0.00012775,2]
[342027386,1731371432460,-418.43,0.00012775,2]
[342027387,1731371432470,-195.24,0.0001278,2]
[342027388,1731371432479,-200.0,0.000128,4]
[342027389,1731371432489,-300.0,0.00012899,2]
[342027390,1731371432498,-300.0,0.00012899,2]
[342027391,1731371432507,-500.0,0.000129,4]
[342027392,1731371432517,-1973.9197,0.000129,2]
[342027393,1731371432526,-1116.96351496,0.000129,2]
[342027394,1731371432535,-1116.96351496,0.000129,2]
[342027395,1731371432545,-2475.28954496,0.00012903,2]
[342027396,1731371432554,-162.84533251,0.00012903,2]
[342027397,1731371432563,-164.33035333,0.00012903,2]
[342027398,1731371432581,-377.6,0.00012945,2]
[342027399,1731371432591,-162.87286162,0.0001299,2]
[342027400,1731371432601,-413.35230834,0.00012999,2]
[342027401,1731371432610,-150.0,0.00012999,2]
[342027402,1731371432620,-4895.23034649,0.00013,2]
[342027403,1731371432631,-536.83568415,0.00013,2]
[342027404,1731371432668,-86735.60312394,0.00013,2]
[342027405,1731371432703,-93897.17085435,0.00013,2]
[342027412,1731371432937,-24384.1609058,0.00013,2]
[342027414,1731371432948,-55173.93468087,0.00013,2]
[342027417,1731371432959,-46799.99998562,0.00013,2]
[342027420,1731371432984,-142199.89487263,0.00013,2]
[342027427,1731371433039,-300.0,0.00013,2]
[342027430,1731371433051,-1220.90037459,0.00013,2]
[342027432,1731371433062,-15000.0,0.00013,2]
[342027534,1731371438328,-534.4333347,0.00013,2]
[342027535,1731371438340,-12864.70314673,0.00013,2]
[342027536,1731371438394,-774221.23495506,0.00013,2]
[342027537,1731371438404,-1540.36,0.00013103,2]
[342027538,1731371438413,-368.81,0.00013103,2]
[342027539,1731371438422,-6367.88,0.00013103,2]
[342027540,1731371438431,-2475.28954487,0.00013125,2]
[342027541,1731371438441,-377.6,0.00013253,2]
[342027542,1731371438451,-335.52,0.00013333,2]
[342027543,1731371438461,-335.52,0.0001334,2]
[342027544,1731371438471,-335.52,0.00013347,2]
[342027545,1731371438480,-2475.28954487,0.00013347,2]
[342027546,1731371438490,-335.52,0.00013354,2]
[342027547,1731371438499,-335.52,0.00013361,2]
[342027548,1731371438509,-335.52,0.00013368,2]
[342027549,1731371438518,-335.52,0.00013375,2]
[342027550,1731371438527,-10441.14092788,0.0001338,2]
[342027551,1731371438537,-335.52,0.00013382,2]
[342027552,1731371438547,-335.52,0.00013389,2]
[342027553,1731371438556,-335.52,0.00013396,2]
[342027554,1731371438566,-1376.1129,0.00013397,2]
[342027555,1731371438580,-335.18,0.00013401,2]
[342027556,1731371438594,-335.52,0.00013403,2]
[342027557,1731371438604,-335.52,0.0001341,2]
[342027558,1731371438615,-335.52,0.00013417,2]
[342027559,1731371438624,-335.52,0.00013424,2]
[342027560,1731371438634,-335.52,0.00013431,2]
[342027561,1731371438644,-335.52,0.00013438,2]
[342027562,1731371438653,-335.52,0.00013445,2]
[342027563,1731371438663,-335.52,0.00013452,2]
[342027564,1731371438672,-335.52,0.00013459,2]
[342027565,1731371438681,-335.52,0.00013466,2]
[342027566,1731371438691,-157.11,0.00013508,2]
[342027567,1731371438700,-377.6,0.00013562,2]
[342027568,1731371438710,-2475.28954487,0.00013569,2]
[342027569,1731371438722,-2264.23,0.00013577,2]
[342027570,1731371438731,-269.089936,0.00013637,2]
[342027571,1731371438740,-500.0,0.00013697,2]
[342027572,1731371438749,-500.0,0.00013697,2]
[342027573,1731371438758,-514.00009298,0.00013697,2]
[342027575,1731371438767,-500.0,0.00013697,2]
[342027577,1731371438776,-500.0,0.00013697,2]
[342027578,1731371438785,-500.0,0.00013697,2]
[342027579,1731371438796,-172.501721,0.00013698,2]
[342027580,1731371438805,-500.0,0.00013698,2]
[342027581,1731371438815,-500.0,0.00013698,2]
[342027582,1731371438829,-500.0,0.00013698,2]
[342027583,1731371438838,-500.0,0.00013698,2]
[342027584,1731371438847,-934.97,0.00013698,2]
[342027585,1731371438856,-934.97,0.00013698,2]
[342027586,1731371438866,-934.97,0.00013698,2]
[342027587,1731371438875,-934.97,0.00013698,2]
[342027588,1731371438885,-500.0,0.00013698,2]
[342027589,1731371438894,-934.97,0.00013698,2]
[342027590,1731371438903,-500.0,0.00013698,2]
[342027591,1731371438912,-266.62,0.00013698,2]
[342027592,1731371438922,-500.0,0.00013698,2]
[342027593,1731371438931,-500.0,0.00013698,2]
[342027594,1731371438940,-500.0,0.00013698,2]
[342027595,1731371438949,-372.9630304,0.00013698,2]
[342027596,1731371438958,-500.0,0.00013698,2]
[342027597,1731371438967,-500.0,0.00013698,2]
[342027598,1731371438976,-500.0,0.00013698,2]
[342027599,1731371438986,-500.0,0.00013698,2]
[342027600,1731371438995,-500.0,0.00013698,2]
[342027601,1731371439004,-500.0,0.00013698,2]
[342027602,1731371439013,-209.3409564,0.00013698,2]
[342027603,1731371439022,-500.0,0.00013698,2]
[342027604,1731371439031,-500.0,0.00013698,2]
[342027605,1731371439040,-500.0,0.00013698,2]
[342027606,1731371439049,-500.0,0.00013698,2]
[342027607,1731371439058,-500.0,0.00013698,2]
[342027608,1731371439070,-377.10984137,0.00013698,2]
[342027609,1731371439080,-500.0,0.00013698,2]
[342027610,1731371439089,-500.0,0.00013698,2]
[342027611,1731371439098,-500.0,0.00013698,2]
[342027612,1731371439107,-500.0,0.00013698,2]
[342027613,1731371439117,-500.0,0.00013698,2]
[342027614,1731371439126,-500.0,0.00013698,2]
[342027615,1731371439135,-500.0,0.00013698,2]
[342027616,1731371439144,-500.0,0.00013698,2]
[342027617,1731371439154,-500.0,0.00013698,2]
[342027618,1731371439163,-500.0,0.00013698,2]
[342027619,1731371439172,-500.0,0.00013698,2]
[342027620,1731371439181,-500.0,0.00013698,2]
[342027621,1731371439190,-500.0,0.00013698,2]
[342027622,1731371439199,-500.0,0.00013698,2]
[342027623,1731371439208,-500.0,0.00013698,2]
[342027624,1731371439217,-500.0,0.00013698,2]
[342027625,1731371439226,-500.0,0.00013698,2]
[342027626,1731371439235,-500.0,0.00013698,2]
[342027627,1731371439244,-500.0,0.00013698,2]
[342027628,1731371439253,-500.0,0.00013698,2]
[342027629,1731371439263,-500.0,0.00013698,2]
[342027630,1731371439272,-500.0,0.00013698,2]
[342027631,1731371439282,-500.0,0.00013698,2]
[342027632,1731371439292,-500.0,0.00013698,2]
[342027633,1731371439302,-178.74715347,0.00013698,2]
[342027634,1731371439311,-500.0,0.00013698,2]
[342027635,1731371439323,-500.0,0.00013698,2]
[342027636,1731371439332,-500.0,0.00013698,2]
[342027637,1731371439342,-500.0,0.00013698,2]
[342027638,1731371439350,-500.0,0.00013698,2]
[342027639,1731371439359,-500.0,0.00013698,2]
[342027640,1731371439373,-500.0,0.00013698,2]
[342027641,1731371439382,-500.0,0.00013698,2]
[342027642,1731371439391,-500.0,0.00013698,2]
[342027643,1731371439400,-500.0,0.00013698,2]
[342027644,1731371439410,-500.0,0.00013698,2]
[342027645,1731371439419,-500.0,0.00013698,2]
[342027646,1731371439428,-550.15574324,0.00013698,2]
[342027647,1731371439437,-500.0,0.00013698,2]
[342027648,1731371439446,-500.0,0.00013698,2]
[342027649,1731371439455,-500.0,0.00013698,2]
[342027650,1731371439466,-596.07311177,0.00013698,2]
[342027651,1731371439476,-500.0,0.00013698,2]
[342027652,1731371439485,-500.0,0.00013698,2]
[342027653,1731371439494,-500.0,0.00013698,2]
[342027654,1731371439504,-500.0,0.00013698,2]
[342027655,1731371439513,-500.0,0.00013698,2]
[342027656,1731371439523,-500.0,0.00013698,2]
[342027657,1731371439533,-500.0,0.00013698,2]
[342027658,1731371439542,-500.0,0.00013698,2]
[342027659,1731371439551,-500.0,0.00013698,2]
[342027660,1731371439560,-496.24,0.00013698,2]
[342027661,1731371439572,-500.0,0.00013698,2]
[342027662,1731371439584,-500.0,0.00013698,2]
[342027663,1731371439594,-500.0,0.00013698,2]
[342027664,1731371439603,-500.0,0.00013698,2]
[342027665,1731371439613,-500.0,0.00013698,2]
[342027666,1731371439867,-500.0,0.00013698,2]
[342027667,1731371439877,-500.0,0.00013698,2]
[342027668,1731371439888,-500.0,0.00013698,2]
[342027669,1731371439898,-500.0,0.00013698,2]
[342027670,1731371439908,-500.0,0.00013698,2]
[342027671,1731371439917,-500.0,0.00013698,2]
[342027672,1731371439926,-500.0,0.00013698,2]
[342027673,1731371439936,-500.0,0.00013698,2]
[342027674,1731371439945,-500.0,0.00013698,2]
[342027675,1731371439954,-500.0,0.00013698,2]
[342027676,1731371439964,-500.0,0.00013698,2]
[342027677,1731371439973,-500.0,0.00013698,2]
[342027678,1731371439982,-500.0,0.00013698,2]
[342027679,1731371439991,-507.50597659,0.00013698,2]
[342027680,1731371440001,-500.0,0.00013698,2]
[342027681,1731371440011,-500.0,0.00013698,2]
[342027682,1731371440020,-500.0,0.00013698,2]
[342027683,1731371440029,-500.0,0.00013698,2]
[342027684,1731371440038,-500.0,0.00013698,2]
[342027685,1731371440047,-500.0,0.00013698,2]
[342027686,1731371440056,-500.0,0.00013698,2]
[342027687,1731371440066,-500.0,0.00013698,2]
[342027688,1731371440082,-267.14,0.00013698,2]
[342027689,1731371440091,-1243.21,0.00013698,2]
[342027690,1731371440100,-1243.21,0.00013698,2]
[342027691,1731371440110,-1243.21,0.00013698,2]
[342027692,1731371440120,-1243.21,0.00013698,2]
[342027693,1731371440136,-1243.21,0.00013698,2]
[342027694,1731371440145,-638.46,0.00013698,2]
[342027695,1731371440154,-500.0,0.00013698,2]
[342027696,1731371440163,-597.16087243,0.00013698,2]
[342027697,1731371440172,-500.0,0.00013698,2]
[342027698,1731371440182,-393.96599705,0.00013698,2]
[342027700,1731371440191,-500.0,0.00013698,2]
[342027701,1731371440200,-326.12,0.00013698,2]
[342027702,1731371440209,-500.0,0.00013698,2]
[342027704,1731371440218,-500.0,0.00013698,2]
[342027705,1731371440236,-500.0,0.00013698,2]
[342027706,1731371440250,-466.2,0.00013698,2]
[342027707,1731371440259,-500.0,0.00013698,2]
[342027708,1731371440268,-156.36714825,0.00013698,2]
[342027709,1731371440277,-389.97,0.00013698,2]
[342027710,1731371440293,-500.0,0.00013698,2]
[342027711,1731371440302,-500.0,0.00013698,2]
[342027712,1731371440311,-500.0,0.00013698,2]
[342027713,1731371440324,-511.43354155,0.00013698,2]
[342027714,1731371440336,-500.0,0.00013698,2]
[342027715,1731371440347,-500.0,0.00013698,2]
[342027716,1731371440357,-500.0,0.00013698,2]
[342027717,1731371440367,-500.0,0.00013698,2]
[342027718,1731371440377,-500.0,0.00013698,2]
[342027719,1731371440386,-500.0,0.00013698,2]
[342027720,1731371440395,-500.0,0.00013698,2]
[342027721,1731371440404,-200.0,0.00013699,2]
[342027722,1731371440414,-250.0,0.00013699,2]
[342027723,1731371440423,-3024.58,0.00013699,2]
[342027724,1731371440432,-150.0,0.00013699,2]
[342027725,1731371440441,-250.0,0.000137,2]
[342027726,1731371440451,-200.0,0.000137,2]
[342027727,1731371440461,-2475.28954487,0.00013791,2]
[342027728,1731371440470,-800.0,0.000138,5]
[342027729,1731371440480,-10170.93842902,0.00013859,2]
[342027730,1731371440489,-386.32195258,0.0001386,2]
[342027731,1731371440499,-200.0,0.0001386,2]
[342027732,1731371440508,-4294.9021818,0.00013863,2]
[342027733,1731371440517,-386.32195258,0.00013866,2]
[342027734,1731371440527,-386.32195258,0.00013867,2]
[342027735,1731371440536,-4294.9021818,0.0001387,2]
[342027736,1731371440545,-4294.9021818,0.00013871,2]
[342027737,1731371440555,-10170.93842902,0.00013871,2]
[342027738,1731371440565,-200.0,0.00013874,2]
[342027739,1731371440578,-386.32195258,0.00013874,2]
[342027740,1731371440588,-608.78030797,0.00013875,2]
[342027741,1731371440598,-4294.9021818,0.00013878,2]
[342027742,1731371440608,-608.78030797,0.00013883,2]
[342027743,1731371440618,-386.32195258,0.00013884,2]
[342027744,1731371440627,-386.32195258,0.00013885,2]
[342027745,1731371440637,-608.78030797,0.00013887,2]
[342027746,1731371440646,-4294.9021818,0.00013887,2]
[342027747,1731371440656,-10170.93842902,0.0001389,2]
[342027748,1731371440665,-1208.388,0.0001389,2]
[342027749,1731371440674,-608.78030797,0.0001389,2]
[342027750,1731371440684,-608.78030797,0.0001389,2]
[342027751,1731371440694,-10170.93842902,0.00013891,2]
[342027752,1731371440704,-200.0,0.00013892,2]
[342027753,1731371440714,-10170.93842902,0.00013894,2]
[342027754,1731371440723,-10170.93842902,0.00013895,2]
[342027755,1731371440733,-200.0,0.00013896,2]
[342027756,1731371440742,-4294.9021818,0.00013898,2]
[342027757,1731371440752,-200.0,0.00013899,2]
[342027758,1731371440762,-608.78030797,0.000139,2]
[342027759,1731371440772,-1100.0,0.000139,5]
[342027760,1731371440782,-150.0,0.00013901,2]
[342027761,1731371440794,-7544.45,0.00013912,2]
[342027762,1731371440805,-500.0,0.00013973,2]
[342027763,1731371440814,-14392.44310077,0.0001398,2]
[342027764,1731371440827,-162.87286162,0.0001399,2]
[342027765,1731371440837,-162.87286162,0.0001399,2]
[342027766,1731371440847,-500.0,0.00013999,2]
[342027767,1731371440858,-231.9,0.00013999,2]
[342027768,1731371440868,-500.0,0.00013999,2]
[342027769,1731371440877,-500.0,0.00013999,2]
[342027770,1731371440886,-500.0,0.00013999,2]
[342027771,1731371440896,-500.0,0.00013999,2]
[342027772,1731371440905,-500.0,0.00013999,2]
[342027773,1731371440915,-500.0,0.00013999,2]
[342027774,1731371440924,-500.0,0.00013999,2]
[342027775,1731371440933,-281.81746112,0.00013999,2]
[342027776,1731371440942,-324894.04155948,0.00014,2]
[342027777,1731371440986,-2620.09544584,0.00014,2]
[342027778,1731371440998,-1090.74995,0.00014,2]
[342027779,1731371441010,-491.35337526,0.00014,2]
[342027780,1731371441022,-750.0,0.00014,2]
[342027781,1731371441033,-2037.02804315,0.00014,2]
[342027782,1731371441045,-2179.35460689,0.00014,2]
[342027783,1731371441063,-941548.15541008,0.00014,2]
[342027784,1731371441088,-4314.3499989,0.00014,2]
[342027785,1731371441099,-4639.77700316,0.00014,2]
[342027786,1731371441111,-2216.4410499,0.00014,2]
[342027787,1731371441121,-41782.80271939,0.00014,2]
[342027796,1731371441244,-500.0,0.00013698,2]
[342027798,1731371441253,-500.0,0.00013698,2]
[342027800,1731371441262,-52.70474802,0.00014,2]
[342027802,1731371441273,-921.8993541,0.00014,2]
[342027809,1731371441335,-1646.61999998,0.00014,2]
[342027811,1731371441345,-6912.5811256,0.00014,2]
[342027814,1731371441368,-28443.3045464,0.00014,2]